[Event "Early-Titled-Tuesday-Blitz-February-06-2024"]
[Site "Chess.com"]
[Date "2024.02.06"]
[Round "3"]
[White "rhungaski"]
[Black "GoValya"]
[Result "1-0"]
[WhiteElo "2497"]
[BlackElo "2272"]
[TimeControl "180+1"]
[EndTime "8:27:22 PST"]
[Termination "rhungaski won by resignation"]

1. e4 {[%clk 0:03:00.9]} 1... e6 {[%clk 0:02:58.9]} 2. d4 {[%clk 0:03:00.5]}
2... d5 {[%clk 0:02:58.3]} 3. Nc3 {[%clk 0:03:01.1]} 3... Nf6 {[%clk 0:02:57.7]}
4. e5 {[%clk 0:03:01.5]} 4... Nfd7 {[%clk 0:02:58.1]} 5. Nce2 {[%clk 0:03:02.1]}
5... c5 {[%clk 0:02:57.5]} 6. c3 {[%clk 0:03:02.8]} 6... Nc6 {[%clk 0:02:57.9]}
7. Nf3 {[%clk 0:03:03.3]} 7... f6 {[%clk 0:02:56.1]} 8. Nf4 {[%clk 0:03:02.4]}
8... Qe7 {[%clk 0:02:34.3]} 9. exf6 {[%clk 0:02:10.5]} 9... Nxf6 {[%clk
0:02:24.6]} 10. Bd3 {[%clk 0:02:04.9]} 10... cxd4 {[%clk 0:02:15.2]} 11. cxd4
{[%clk 0:02:04.3]} 11... Bd7 {[%clk 0:01:58.8]} 12. O-O {[%clk 0:02:03.6]} 12...
O-O-O {[%clk 0:01:52.5]} 13. Re1 {[%clk 0:01:52.2]} 13... Kb8 {[%clk 0:01:18]}
14. b4 {[%clk 0:01:14.5]} 14... Nxb4 {[%clk 0:00:51.9]} 15. Ba3 {[%clk
0:01:13.9]} 15... Qd6 {[%clk 0:00:28.9]} 16. Ne5 {[%clk 0:01:10.9]} 16... Be8
{[%clk 0:00:22.1]} 17. Bxb4 {[%clk 0:01:01.2]} 17... Qxb4 {[%clk 0:00:19.8]} 18.
Nxe6 {[%clk 0:01:01.9]} 18... Rc8 {[%clk 0:00:17.7]} 19. Rb1 {[%clk 0:00:58.5]}
19... Qa4 {[%clk 0:00:16.8]} 20. Qd2 {[%clk 0:00:25.7]} 20... Bd6 {[%clk
0:00:15.9]} 21. Rb3 {[%clk 0:00:20.7]} 21... Bc6 {[%clk 0:00:14.3]} 22. Reb1
{[%clk 0:00:19.8]} 22... b6 {[%clk 0:00:11.4]} 23. Nc5 {[%clk 0:00:19.6]} 23...
Bxc5 {[%clk 0:00:11]} 24. dxc5 {[%clk 0:00:20.5]} 24... b5 {[%clk 0:00:11.5]}
25. Nxc6+ {[%clk 0:00:19.1]} 25... Rxc6 {[%clk 0:00:11.3]} 26. Bxb5 {[%clk
0:00:19.9]} 1-0

[Event "Early-Titled-Tuesday-Blitz-February-06-2024"]
[Site "Chess.com"]
[Date "2024.02.06"]
[Round "3"]
[White "FMStan15"]
[Black "Roedor"]
[Result "0-1"]
[WhiteElo "2006"]
[BlackElo "2341"]
[TimeControl "180+1"]
[EndTime "8:27:23 PST"]
[Termination "Roedor won by checkmate"]

1. e4 {[%clk 0:02:54.8]} 1... e5 {[%clk 0:02:59.8]} 2. Nf3 {[%clk 0:02:51.6]}
2... Nc6 {[%clk 0:02:59.9]} 3. Bb5 {[%clk 0:02:50]} 3... Nf6 {[%clk 0:02:59.3]}
4. d3 {[%clk 0:02:49.5]} 4... Bc5 {[%clk 0:02:57.8]} 5. c3 {[%clk 0:02:49]} 5...
O-O {[%clk 0:02:56.6]} 6. b4 {[%clk 0:02:48.5]} 6... Be7 {[%clk 0:02:55.8]} 7.
Bxc6 {[%clk 0:02:44.4]} 7... bxc6 {[%clk 0:02:55]} 8. Nxe5 {[%clk 0:02:44.2]}
8... a5 {[%clk 0:02:53.6]} 9. bxa5 {[%clk 0:02:43.1]} 9... Rxa5 {[%clk
0:02:46.2]} 10. Nc4 {[%clk 0:02:43.1]} 10... Ra8 {[%clk 0:02:33.6]} 11. O-O
{[%clk 0:02:43]} 11... d5 {[%clk 0:02:33.9]} 12. exd5 {[%clk 0:02:35.4]} 12...
cxd5 {[%clk 0:02:34.8]} 13. Ne5 {[%clk 0:02:33.8]} 13... Bd6 {[%clk 0:02:25.4]}
14. Bf4 {[%clk 0:02:29.7]} 14... Ng4 {[%clk 0:02:14.7]} 15. Nxg4 {[%clk
0:02:25.6]} 15... Bxf4 {[%clk 0:02:14.5]} 16. Qf3 {[%clk 0:02:14.1]} 16... Qg5
{[%clk 0:02:09.2]} 17. Ne3 {[%clk 0:02:09.6]} 17... c6 {[%clk 0:02:01.8]} 18. g3
{[%clk 0:02:05]} 18... Bc7 {[%clk 0:01:54.7]} 19. h4 {[%clk 0:02:02.4]} 19...
Qg6 {[%clk 0:01:50]} 20. Rd1 {[%clk 0:01:41.3]} 20... f5 {[%clk 0:01:49.4]} 21.
Ng2 {[%clk 0:01:36.6]} 21... f4 {[%clk 0:01:46.9]} 22. h5 {[%clk 0:01:09.5]}
22... Qg4 {[%clk 0:01:34.3]} 23. Qxg4 {[%clk 0:01:02.3]} 23... Bxg4 {[%clk
0:01:35.2]} 24. Re1 {[%clk 0:00:53.5]} 24... fxg3 {[%clk 0:01:34.4]} 25. fxg3
{[%clk 0:00:53.1]} 25... Bxg3 {[%clk 0:01:34.3]} 26. Rc1 {[%clk 0:00:43.9]}
26... Rae8 {[%clk 0:01:14.3]} 27. Nd2 {[%clk 0:00:42.7]} 27... Re2 {[%clk
0:01:12.7]} 28. Nf1 {[%clk 0:00:42.6]} 28... Bf2+ {[%clk 0:00:54.8]} 29. Kh2
{[%clk 0:00:37.9]} 29... Rf5 {[%clk 0:00:54.5]} 30. Ng3 {[%clk 0:00:31.9]} 30...
Bxg3+ {[%clk 0:00:43.7]} 31. Kxg3 {[%clk 0:00:31.7]} 31... Bxh5 {[%clk
0:00:43.8]} 32. Nf4 {[%clk 0:00:12.5]} 32... Re3+ {[%clk 0:00:33.1]} 33. Kh4
{[%clk 0:00:12.3]} 33... Rxf4+ {[%clk 0:00:30.9]} 34. Kxh5 {[%clk 0:00:12.5]}
34... Re5# {[%clk 0:00:31.1]} 0-1

[Event "Early-Titled-Tuesday-Blitz-February-06-2024"]
[Site "Chess.com"]
[Date "2024.02.06"]
[Round "3"]
[White "Yurovskykh_Oleksandr"]
[Black "Fandorine"]
[Result "0-1"]
[WhiteElo "2629"]
[BlackElo "2960"]
[TimeControl "180+1"]
[EndTime "8:27:26 PST"]
[Termination "Fandorine won by checkmate"]

1. d4 {[%clk 0:03:00.9]} 1... Nf6 {[%clk 0:02:58.3]} 2. Nf3 {[%clk 0:02:59.2]}
2... g6 {[%clk 0:02:57.8]} 3. Bg5 {[%clk 0:02:58.5]} 3... Bg7 {[%clk 0:02:58.1]}
4. Nbd2 {[%clk 0:02:58.9]} 4... O-O {[%clk 0:02:57.1]} 5. c3 {[%clk 0:02:59.3]}
5... d6 {[%clk 0:02:56.6]} 6. e4 {[%clk 0:02:59.4]} 6... Nc6 {[%clk 0:02:55]} 7.
Be2 {[%clk 0:02:56.6]} 7... Qe8 {[%clk 0:02:55.2]} 8. O-O {[%clk 0:02:56.1]}
8... Nd7 {[%clk 0:02:54.6]} 9. Nc4 {[%clk 0:02:50.4]} 9... e5 {[%clk 0:02:49.6]}
10. dxe5 {[%clk 0:02:46.4]} 10... Ndxe5 {[%clk 0:02:46.9]} 11. Nfxe5 {[%clk
0:02:45.9]} 11... Nxe5 {[%clk 0:02:46.9]} 12. Qc2 {[%clk 0:02:36.6]} 12... Nxc4
{[%clk 0:02:39.3]} 13. Bxc4 {[%clk 0:02:37.5]} 13... Be6 {[%clk 0:02:37.8]} 14.
Bxe6 {[%clk 0:02:31.3]} 14... Qxe6 {[%clk 0:02:31.7]} 15. b3 {[%clk 0:02:22.1]}
15... b5 {[%clk 0:02:16.8]} 16. Rae1 {[%clk 0:02:17.5]} 16... a5 {[%clk
0:02:12.1]} 17. Be3 {[%clk 0:01:58.5]} 17... c5 {[%clk 0:02:07.6]} 18. Rd1
{[%clk 0:01:50.9]} 18... Rfe8 {[%clk 0:02:00.2]} 19. f3 {[%clk 0:01:29.7]} 19...
b4 {[%clk 0:01:59]} 20. c4 {[%clk 0:00:58.5]} 20... f5 {[%clk 0:01:38.4]} 21.
Bf2 {[%clk 0:00:39.5]} 21... fxe4 {[%clk 0:01:30.3]} 22. fxe4 {[%clk 0:00:32.4]}
22... a4 {[%clk 0:01:23.6]} 23. bxa4 {[%clk 0:00:20.2]} 23... Qxe4 {[%clk
0:01:20]} 24. Qb3 {[%clk 0:00:20.4]} 24... Rf8 {[%clk 0:00:59.1]} 25. Kh1 {[%clk
0:00:13.2]} 25... Qe2 {[%clk 0:00:52.4]} 26. Qg3 {[%clk 0:00:01.9]} 26... Be5
{[%clk 0:00:48.8]} 27. Qh4 {[%clk 0:00:02.4]} 27... Rf4 {[%clk 0:00:42.6]} 28.
Qg3 {[%clk 0:00:02.2]} 28... Raf8 {[%clk 0:00:40.3]} 29. Rde1 {[%clk 0:00:01.8]}
29... Rxf2 {[%clk 0:00:40.6]} 30. Rxe2 {[%clk 0:00:01.8]} 30... Rxf1# {[%clk
0:00:40.2]} 0-1

[Event "Early-Titled-Tuesday-Blitz-February-06-2024"]
[Site "Chess.com"]
[Date "2024.02.06"]
[Round "3"]
[White "FaustinoOro"]
[Black "TokChess"]
[Result "0-1"]
[WhiteElo "2766"]
[BlackElo "2591"]
[TimeControl "180+1"]
[EndTime "8:27:26 PST"]
[Termination "TokChess won by resignation"]

1. d4 {[%clk 0:03:00.9]} 1... Nf6 {[%clk 0:02:59.3]} 2. Nf3 {[%clk 0:03:00.6]}
2... d5 {[%clk 0:02:59.2]} 3. Bf4 {[%clk 0:02:59.8]} 3... e6 {[%clk 0:02:58.8]}
4. e3 {[%clk 0:02:59.9]} 4... Bd6 {[%clk 0:02:59.3]} 5. Bg3 {[%clk 0:02:56.1]}
5... c5 {[%clk 0:02:58.3]} 6. c3 {[%clk 0:02:55.7]} 6... Qc7 {[%clk 0:02:57.8]}
7. Bd3 {[%clk 0:02:53]} 7... Nbd7 {[%clk 0:02:54.2]} 8. O-O {[%clk 0:02:48]}
8... O-O {[%clk 0:02:52.5]} 9. Bxd6 {[%clk 0:02:41.3]} 9... Qxd6 {[%clk
0:02:52.1]} 10. Nbd2 {[%clk 0:02:40.4]} 10... e5 {[%clk 0:02:46.5]} 11. dxe5
{[%clk 0:02:21.4]} 11... Nxe5 {[%clk 0:02:47.4]} 12. Nxe5 {[%clk 0:02:21.8]}
12... Qxe5 {[%clk 0:02:47.1]} 13. Re1 {[%clk 0:02:20.9]} 13... Bg4 {[%clk
0:02:28.9]} 14. Qc2 {[%clk 0:02:16.8]} 14... Rfe8 {[%clk 0:02:25.8]} 15. h3
{[%clk 0:02:12.9]} 15... Bh5 {[%clk 0:02:11.8]} 16. a4 {[%clk 0:01:31.3]} 16...
Bg6 {[%clk 0:02:02]} 17. Nf3 {[%clk 0:01:29.5]} 17... Qc7 {[%clk 0:01:55.6]} 18.
Bxg6 {[%clk 0:01:27.5]} 18... hxg6 {[%clk 0:01:55.3]} 19. c4 {[%clk 0:01:25.1]}
19... dxc4 {[%clk 0:01:43.8]} 20. Qxc4 {[%clk 0:01:26]} 20... Re4 {[%clk
0:01:42.8]} 21. Qc2 {[%clk 0:01:22.9]} 21... Qa5 {[%clk 0:01:31.1]} 22. Nd2
{[%clk 0:01:19.3]} 22... Rb4 {[%clk 0:01:22.2]} 23. Nc4 {[%clk 0:01:17.1]} 23...
Qa6 {[%clk 0:01:19.6]} 24. b3 {[%clk 0:01:16.1]} 24... b5 {[%clk 0:00:49.8]} 25.
axb5 {[%clk 0:01:12.5]} 25... Qxb5 {[%clk 0:00:50.7]} 26. Ra5 {[%clk 0:01:03.1]}
26... Rxc4 {[%clk 0:00:41.3]} 27. Qa2 {[%clk 0:00:52.2]} 27... Rc2 {[%clk
0:00:30.1]} 28. Qa1 {[%clk 0:00:42.5]} 28... Qxb3 {[%clk 0:00:24.3]} 29. Rxa7
{[%clk 0:00:38.8]} 29... Rxa7 {[%clk 0:00:22.7]} 30. Qxa7 {[%clk 0:00:39.7]}
30... Qc4 {[%clk 0:00:20]} 31. Qa3 {[%clk 0:00:33.1]} 31... Qc3 {[%clk
0:00:17.1]} 32. Qa8+ {[%clk 0:00:27.5]} 32... Kh7 {[%clk 0:00:16.5]} 0-1

[Event "Early-Titled-Tuesday-Blitz-February-06-2024"]
[Site "Chess.com"]
[Date "2024.02.06"]
[Round "3"]
[White "carokannlover213"]
[Black "Actuary44"]
[Result "1-0"]
[WhiteElo "2768"]
[BlackElo "2484"]
[TimeControl "180+1"]
[EndTime "8:27:27 PST"]
[Termination "carokannlover213 won by resignation"]

1. e4 {[%clk 0:03:00.9]} 1... b6 {[%clk 0:02:59.5]} 2. d4 {[%clk 0:03:01]} 2...
Bb7 {[%clk 0:03:00.1]} 3. Bd3 {[%clk 0:03:01.7]} 3... e6 {[%clk 0:03:00.7]} 4.
Qe2 {[%clk 0:03:00.5]} 4... Nf6 {[%clk 0:03:01.3]} 5. Nf3 {[%clk 0:02:58.6]}
5... d5 {[%clk 0:03:01.7]} 6. e5 {[%clk 0:02:58.7]} 6... Nfd7 {[%clk 0:03:02.2]}
7. c3 {[%clk 0:02:57.8]} 7... c5 {[%clk 0:03:02.8]} 8. h4 {[%clk 0:02:58.3]}
8... Nc6 {[%clk 0:03:03.1]} 9. Bg5 {[%clk 0:02:56]} 9... Qc7 {[%clk 0:03:03.4]}
10. a3 {[%clk 0:02:52.3]} 10... h6 {[%clk 0:03:03.6]} 11. Bf4 {[%clk 0:02:51.1]}
11... O-O-O {[%clk 0:03:03.1]} 12. a4 {[%clk 0:02:38.6]} 12... f6 {[%clk
0:02:49.8]} 13. Na3 {[%clk 0:02:13]} 13... c4 {[%clk 0:02:07.1]} 14. Bg6 {[%clk
0:02:01.9]} 14... a6 {[%clk 0:02:04.5]} 15. Nc2 {[%clk 0:01:45.3]} 15... fxe5
{[%clk 0:02:02]} 16. Nxe5 {[%clk 0:01:38.1]} 16... Ndxe5 {[%clk 0:01:57.4]} 17.
dxe5 {[%clk 0:01:36]} 17... d4 {[%clk 0:01:46.8]} 18. Qxc4 {[%clk 0:01:19.4]}
18... d3 {[%clk 0:01:22.1]} 19. Bxd3 {[%clk 0:01:08]} 19... Kb8 {[%clk
0:00:54.4]} 20. Be4 {[%clk 0:01:03.4]} 20... Be7 {[%clk 0:00:36.8]} 21. h5
{[%clk 0:01:03.1]} 21... Rhf8 {[%clk 0:00:36.1]} 22. Bg3 {[%clk 0:01:01.3]}
22... Bg5 {[%clk 0:00:34.9]} 23. O-O {[%clk 0:00:59]} 23... Bf4 {[%clk
0:00:31.1]} 24. Bxc6 {[%clk 0:00:38.7]} 24... Bxg3 {[%clk 0:00:11.8]} 25. fxg3
{[%clk 0:00:39.6]} 25... Bxc6 {[%clk 0:00:07]} 26. Nd4 {[%clk 0:00:37.1]} 26...
Bd5 {[%clk 0:00:05.3]} 27. Qxc7+ {[%clk 0:00:37.1]} 27... Kxc7 {[%clk
0:00:06.2]} 28. Rxf8 {[%clk 0:00:34.5]} 28... Rxf8 {[%clk 0:00:07.1]} 29. c4
{[%clk 0:00:35]} 29... Bxc4 {[%clk 0:00:06.4]} 30. Rc1 {[%clk 0:00:34.3]} 30...
b5 {[%clk 0:00:06.6]} 31. axb5 {[%clk 0:00:33.6]} 31... axb5 {[%clk 0:00:06.3]}
32. Nxe6+ {[%clk 0:00:28]} 1-0

[Event "Early-Titled-Tuesday-Blitz-February-06-2024"]
[Site "Chess.com"]
[Date "2024.02.06"]
[Round "3"]
[White "Aslanov_Umid"]
[Black "Mistango"]
[Result "1-0"]
[WhiteElo "2674"]
[BlackElo "2455"]
[TimeControl "180+1"]
[EndTime "8:27:27 PST"]
[Termination "Aslanov_Umid won on time"]

1. e4 {[%clk 0:03:00.9]} 1... e5 {[%clk 0:02:59.1]} 2. Nf3 {[%clk 0:03:01.2]}
2... Nc6 {[%clk 0:02:59]} 3. Bc4 {[%clk 0:03:01]} 3... Nf6 {[%clk 0:02:58.7]} 4.
d3 {[%clk 0:03:01]} 4... Be7 {[%clk 0:02:56.2]} 5. O-O {[%clk 0:03:00.8]} 5...
O-O {[%clk 0:02:56.2]} 6. c3 {[%clk 0:03:01.2]} 6... d6 {[%clk 0:02:55.4]} 7. h3
{[%clk 0:03:00.1]} 7... h6 {[%clk 0:02:54.4]} 8. Re1 {[%clk 0:02:59.1]} 8... Be6
{[%clk 0:02:54]} 9. Bb5 {[%clk 0:02:59.2]} 9... a6 {[%clk 0:02:48.5]} 10. Ba4
{[%clk 0:02:59.4]} 10... Nh5 {[%clk 0:02:39.4]} 11. Nbd2 {[%clk 0:02:44.4]}
11... f5 {[%clk 0:02:04.1]} 12. d4 {[%clk 0:02:00.1]} 12... fxe4 {[%clk
0:01:56]} 13. Nxe4 {[%clk 0:01:56.5]} 13... d5 {[%clk 0:01:49.9]} 14. Bxc6
{[%clk 0:01:56.1]} 14... bxc6 {[%clk 0:01:49.1]} 15. Nxe5 {[%clk 0:01:56.4]}
15... dxe4 {[%clk 0:01:44.5]} 16. Qxh5 {[%clk 0:01:55.7]} 16... Rf5 {[%clk
0:01:14.8]} 17. Qg6 {[%clk 0:01:37.5]} 17... Qd6 {[%clk 0:01:09.1]} 18. Rxe4
{[%clk 0:01:12.5]} 18... Rf6 {[%clk 0:00:41.8]} 19. Qg3 {[%clk 0:01:09.9]} 19...
Raf8 {[%clk 0:00:41.1]} 20. Be3 {[%clk 0:00:53.7]} 20... Bd5 {[%clk 0:00:33]}
21. Rg4 {[%clk 0:00:53.3]} 21... g5 {[%clk 0:00:28.1]} 22. h4 {[%clk 0:00:50.7]}
22... Rf5 {[%clk 0:00:23.1]} 23. hxg5 {[%clk 0:00:43.2]} 23... h5 {[%clk
0:00:23.1]} 24. Rh4 {[%clk 0:00:40]} 24... Kg7 {[%clk 0:00:18.8]} 25. Rxh5
{[%clk 0:00:39]} 25... Qe6 {[%clk 0:00:13.1]} 26. Rh6 {[%clk 0:00:33.3]} 26...
Qc8 {[%clk 0:00:12.9]} 27. Qh4 {[%clk 0:00:29.3]} 27... Rh8 {[%clk 0:00:03.1]}
28. Rg6+ {[%clk 0:00:28.3]} 28... Kf8 {[%clk 0:00:01.4]} 29. Qxh8+ {[%clk
0:00:28.8]} 1-0

[Event "Early-Titled-Tuesday-Blitz-February-06-2024"]
[Site "Chess.com"]
[Date "2024.02.06"]
[Round "3"]
[White "Brahianzevich"]
[Black "invisible_s0ul"]
[Result "1-0"]
[WhiteElo "2449"]
[BlackElo "2236"]
[TimeControl "180+1"]
[EndTime "8:27:28 PST"]
[Termination "Brahianzevich won by resignation"]

1. e4 {[%clk 0:03:00.9]} 1... c6 {[%clk 0:02:58.2]} 2. d4 {[%clk 0:03:00.5]}
2... d5 {[%clk 0:02:58.8]} 3. Nc3 {[%clk 0:03:00.9]} 3... dxe4 {[%clk
0:02:57.8]} 4. Nxe4 {[%clk 0:03:01.8]} 4... Nf6 {[%clk 0:02:57.9]} 5. Nxf6+
{[%clk 0:03:02]} 5... exf6 {[%clk 0:02:57.2]} 6. c3 {[%clk 0:03:00.6]} 6... Bd6
{[%clk 0:02:57.6]} 7. Bd3 {[%clk 0:03:00]} 7... O-O {[%clk 0:02:55.8]} 8. Ne2
{[%clk 0:02:59.7]} 8... Qc7 {[%clk 0:02:56.4]} 9. Qc2 {[%clk 0:02:59.5]} 9... h6
{[%clk 0:02:55.6]} 10. Be3 {[%clk 0:02:59.4]} 10... Re8 {[%clk 0:02:52.2]} 11.
O-O-O {[%clk 0:02:59.2]} 11... Nd7 {[%clk 0:02:48.2]} 12. Ng3 {[%clk 0:02:19.9]}
12... Bf4 {[%clk 0:02:18.9]} 13. Rde1 {[%clk 0:02:02.6]} 13... Nf8 {[%clk
0:01:57.3]} 14. Kb1 {[%clk 0:01:52.2]} 14... Be6 {[%clk 0:01:47]} 15. Nf5 {[%clk
0:01:41.3]} 15... Bd5 {[%clk 0:01:27.8]} 16. c4 {[%clk 0:01:08.3]} 16... Be6
{[%clk 0:00:49.4]} 17. g3 {[%clk 0:01:06.2]} 17... Bxe3 {[%clk 0:00:47.3]} 18.
Rxe3 {[%clk 0:01:07.1]} 18... Bxf5 {[%clk 0:00:36.1]} 19. Bxf5 {[%clk
0:01:06.6]} 19... Ne6 {[%clk 0:00:31]} 20. Rhe1 {[%clk 0:01:03.6]} 20... Qd8
{[%clk 0:00:19.3]} 21. Qd3 {[%clk 0:00:55.5]} 21... Kf8 {[%clk 0:00:17.4]} 22.
d5 {[%clk 0:00:53.8]} 22... cxd5 {[%clk 0:00:10.6]} 23. cxd5 {[%clk 0:00:53.1]}
23... g6 {[%clk 0:00:08.1]} 24. Bxg6 {[%clk 0:00:49.1]} 24... fxg6 {[%clk
0:00:08.8]} 25. Qxg6 {[%clk 0:00:49.2]} 25... Qxd5 {[%clk 0:00:05.5]} 26. Qxf6+
{[%clk 0:00:47.5]} 26... Kg8 {[%clk 0:00:04.3]} 27. Rxe6 {[%clk 0:00:46]} 27...
Qd3+ {[%clk 0:00:02.9]} 28. Ka1 {[%clk 0:00:45.3]} 28... Rxe6 {[%clk 0:00:03.4]}
29. Qxe6+ {[%clk 0:00:45.1]} 29... Kg7 {[%clk 0:00:02]} 30. Qe7+ {[%clk
0:00:41.2]} 30... Kg8 {[%clk 0:00:02.5]} 31. Qxb7 {[%clk 0:00:39.9]} 31... Rf8
{[%clk 0:00:02.9]} 32. Qxa7 {[%clk 0:00:35.8]} 32... Rxf2 {[%clk 0:00:02.2]} 33.
Qxf2 {[%clk 0:00:35]} 1-0

[Event "Early-Titled-Tuesday-Blitz-February-06-2024"]
[Site "Chess.com"]
[Date "2024.02.06"]
[Round "3"]
[White "Kapitan_Bayan"]
[Black "FMCarmona"]
[Result "1-0"]
[WhiteElo "2391"]
[BlackElo "2150"]
[TimeControl "180+1"]
[EndTime "8:27:28 PST"]
[Termination "Kapitan_Bayan won on time"]

1. e4 {[%clk 0:02:57.9]} 1... e5 {[%clk 0:02:59.1]} 2. Nf3 {[%clk 0:02:58]} 2...
Nc6 {[%clk 0:02:59.8]} 3. Bc4 {[%clk 0:02:58.1]} 3... Bc5 {[%clk 0:03:00.2]} 4.
O-O {[%clk 0:02:54.1]} 4... Nf6 {[%clk 0:03:00.6]} 5. d3 {[%clk 0:02:53.5]} 5...
d6 {[%clk 0:03:00]} 6. c3 {[%clk 0:02:52.1]} 6... a6 {[%clk 0:02:59.1]} 7. a4
{[%clk 0:02:51.3]} 7... Ba7 {[%clk 0:02:58.4]} 8. h3 {[%clk 0:02:49.9]} 8... h6
{[%clk 0:02:58.5]} 9. Nbd2 {[%clk 0:02:47.4]} 9... O-O {[%clk 0:02:57.7]} 10.
Re1 {[%clk 0:02:46.5]} 10... Ne7 {[%clk 0:02:57.9]} 11. Nf1 {[%clk 0:02:45.5]}
11... Ng6 {[%clk 0:02:58.5]} 12. Ng3 {[%clk 0:02:45.8]} 12... c6 {[%clk
0:02:58.6]} 13. b4 {[%clk 0:02:27.2]} 13... b5 {[%clk 0:02:50]} 14. Bb3 {[%clk
0:02:23.4]} 14... bxa4 {[%clk 0:02:07.1]} 15. Rxa4 {[%clk 0:02:12.5]} 15... Bb7
{[%clk 0:02:01.1]} 16. Ra2 {[%clk 0:02:03.5]} 16... Qc7 {[%clk 0:01:55.7]} 17.
Nf5 {[%clk 0:01:56.9]} 17... d5 {[%clk 0:01:51.9]} 18. N3h4 {[%clk 0:01:28.5]}
18... Nxh4 {[%clk 0:01:40.4]} 19. Nxh4 {[%clk 0:01:28.2]} 19... dxe4 {[%clk
0:01:36.9]} 20. dxe4 {[%clk 0:01:27]} 20... c5 {[%clk 0:01:36.8]} 21. Qf3 {[%clk
0:01:21.2]} 21... Nxe4 {[%clk 0:01:08.3]} 22. Rxe4 {[%clk 0:01:14.4]} 22... cxb4
{[%clk 0:01:02.7]} 23. Bxh6 {[%clk 0:00:51.6]} 23... Bxe4 {[%clk 0:00:50.3]} 24.
Qxe4 {[%clk 0:00:50.1]} 24... Qb6 {[%clk 0:00:15.7]} 25. Be3 {[%clk 0:00:35.7]}
25... Qf6 {[%clk 0:00:08.2]} 26. Bd5 {[%clk 0:00:23.3]} 1-0

[Event "Early-Titled-Tuesday-Blitz-February-06-2024"]
[Site "Chess.com"]
[Date "2024.02.06"]
[Round "3"]
[White "Hikaru"]
[Black "SchmakAttack"]
[Result "1-0"]
[WhiteElo "3310"]
[BlackElo "2769"]
[TimeControl "180+1"]
[EndTime "8:27:31 PST"]
[Termination "Hikaru won on time"]

1. Nf3 {[%clk 0:03:00.9]} 1... Nf6 {[%clk 0:02:58.9]} 2. b3 {[%clk 0:03:01]}
2... g6 {[%clk 0:02:56.2]} 3. Bb2 {[%clk 0:03:00.9]} 3... Bg7 {[%clk 0:02:56.7]}
4. d4 {[%clk 0:03:01.8]} 4... O-O {[%clk 0:02:54.5]} 5. e3 {[%clk 0:03:02.3]}
5... c5 {[%clk 0:02:53.6]} 6. dxc5 {[%clk 0:03:02.4]} 6... Qa5+ {[%clk
0:02:38.3]} 7. c3 {[%clk 0:03:01.1]} 7... Qxc5 {[%clk 0:02:38.2]} 8. Ba3 {[%clk
0:03:01.1]} 8... Qb6 {[%clk 0:02:38.3]} 9. Bxe7 {[%clk 0:03:01.1]} 9... Re8
{[%clk 0:02:38.8]} 10. Bxf6 {[%clk 0:03:01.1]} 10... Bxf6 {[%clk 0:02:38.7]} 11.
Be2 {[%clk 0:03:01.9]} 11... Nc6 {[%clk 0:02:30.4]} 12. O-O {[%clk 0:03:01.8]}
12... a5 {[%clk 0:02:09.1]} 13. Nd4 {[%clk 0:02:48.5]} 13... d5 {[%clk
0:02:06.4]} 14. a4 {[%clk 0:02:45.3]} 14... Kg7 {[%clk 0:01:47.7]} 15. Na3
{[%clk 0:02:45.3]} 15... Bd7 {[%clk 0:01:42]} 16. Nab5 {[%clk 0:02:45.1]} 16...
Ne5 {[%clk 0:01:36.7]} 17. Qd2 {[%clk 0:02:43.1]} 17... h5 {[%clk 0:01:35.2]}
18. h3 {[%clk 0:02:42.6]} 18... Rad8 {[%clk 0:01:25]} 19. Rad1 {[%clk 0:02:40]}
19... Nc6 {[%clk 0:01:21.9]} 20. Bf3 {[%clk 0:02:35.3]} 20... Bc8 {[%clk
0:01:19.3]} 21. Rfe1 {[%clk 0:02:29.7]} 21... Ne5 {[%clk 0:01:16.2]} 22. Be2
{[%clk 0:02:29.7]} 22... Nc6 {[%clk 0:01:16.3]} 23. Bf1 {[%clk 0:02:29.3]} 23...
Re7 {[%clk 0:01:14.9]} 24. b4 {[%clk 0:02:29.3]} 24... Ree8 {[%clk 0:00:47.2]}
25. Nb3 {[%clk 0:02:27.3]} 25... Bf5 {[%clk 0:00:41.3]} 26. N5d4 {[%clk
0:02:08.4]} 26... Bc8 {[%clk 0:00:38]} 27. Bb5 {[%clk 0:02:03.6]} 27... axb4
{[%clk 0:00:32.4]} 28. cxb4 {[%clk 0:02:04.5]} 28... Bd7 {[%clk 0:00:32.8]} 29.
a5 {[%clk 0:02:01.3]} 29... Qc7 {[%clk 0:00:32.9]} 30. Bxc6 {[%clk 0:01:58.9]}
30... Bxc6 {[%clk 0:00:29.3]} 31. Rc1 {[%clk 0:01:56.4]} 31... Qd6 {[%clk
0:00:28.6]} 32. a6 {[%clk 0:01:31.1]} 32... Bd7 {[%clk 0:00:11.9]} 33. axb7
{[%clk 0:01:25.8]} 33... Qb6 {[%clk 0:00:04.7]} 34. Nc5 {[%clk 0:01:25.9]} 34...
Be7 {[%clk 0:00:04.7]} 35. Ra1 {[%clk 0:01:15.5]} 35... Bxc5 {[%clk 0:00:04]}
36. bxc5 {[%clk 0:01:16.4]} 36... Qxc5 {[%clk 0:00:03]} 37. Ra6 {[%clk
0:01:09.4]} 37... Rb8 {[%clk 0:00:02.6]} 38. Qb2 {[%clk 0:01:09.3]} 38... Kg8
{[%clk 0:00:02.7]} 39. Rb6 {[%clk 0:01:09]} 39... Re7 {[%clk 0:00:02.5]} 40. Rc1
{[%clk 0:01:09.1]} 40... Qa5 {[%clk 0:00:01.1]} 41. Nc6 {[%clk 0:00:48.8]} 1-0